[Event "Late-Titled-Tuesday-Blitz-November-28-2023"]
[Site "Chess.com"]
[Date "2023.11.28"]
[Round "4"]
[White "Ali_rastbod"]
[Black "rasmussvane"]
[Result "0-1"]
[WhiteElo "2783"]
[BlackElo "2979"]
[TimeControl "180+1"]
[EndTime "14:37:09 PST"]
[Termination "rasmussvane won on time"]

1. c4 {[%clk 0:03:00.3]} 1... e6 {[%clk 0:02:54.2]} 2. g3 {[%clk 0:02:59.7]}
2... d5 {[%clk 0:02:54.3]} 3. Bg2 {[%clk 0:03:00.6]} 3... a6 {[%clk 0:02:49.3]}
4. Qc2 {[%clk 0:02:59.7]} 4... Nf6 {[%clk 0:02:44.6]} 5. Nf3 {[%clk 0:02:54.6]}
5... c5 {[%clk 0:02:36.2]} 6. O-O {[%clk 0:02:53.1]} 6... Nc6 {[%clk 0:02:35.7]}
7. cxd5 {[%clk 0:02:35.9]} 7... exd5 {[%clk 0:02:33.7]} 8. d4 {[%clk 0:02:31.1]}
8... cxd4 {[%clk 0:02:23.5]} 9. Rd1 {[%clk 0:02:24.1]} 9... Qb6 {[%clk
0:02:21.5]} 10. Nbd2 {[%clk 0:02:20]} 10... Bg4 {[%clk 0:01:54.5]} 11. Nb3
{[%clk 0:02:18.7]} 11... Bxf3 {[%clk 0:01:53.5]} 12. exf3 {[%clk 0:01:57.8]}
12... Be7 {[%clk 0:01:50.1]} 13. Qd3 {[%clk 0:01:56.5]} 13... O-O {[%clk
0:01:48.8]} 14. Nxd4 {[%clk 0:01:56.8]} 14... Nxd4 {[%clk 0:01:49.2]} 15. Qxd4
{[%clk 0:01:57.3]} 15... Bc5 {[%clk 0:01:49.6]} 16. Qd2 {[%clk 0:01:57.6]} 16...
Rfe8 {[%clk 0:01:46.1]} 17. b3 {[%clk 0:01:46.6]} 17... Re6 {[%clk 0:01:41.7]}
18. Bb2 {[%clk 0:01:41.8]} 18... Rae8 {[%clk 0:01:41.6]} 19. Bf1 {[%clk
0:01:32]} 19... h6 {[%clk 0:01:35.7]} 20. Bd4 {[%clk 0:01:19.8]} 20... Bxd4
{[%clk 0:01:29.4]} 21. Qxd4 {[%clk 0:01:20.7]} 21... Qxd4 {[%clk 0:01:30.1]} 22.
Rxd4 {[%clk 0:01:19.4]} 22... Rc6 {[%clk 0:01:27.4]} 23. Rd2 {[%clk 0:01:14.1]}
23... g5 {[%clk 0:01:27]} 24. Bd3 {[%clk 0:01:00.3]} 24... Kf8 {[%clk
0:01:22.8]} 25. Kg2 {[%clk 0:00:57.9]} 25... Rc3 {[%clk 0:01:18.7]} 26. Rb1
{[%clk 0:00:54.3]} 26... Rec8 {[%clk 0:01:16.3]} 27. b4 {[%clk 0:00:53.1]} 27...
Rc1 {[%clk 0:01:16.2]} 28. Rxc1 {[%clk 0:00:42.4]} 28... Rxc1 {[%clk 0:01:17.1]}
29. b5 {[%clk 0:00:43]} 29... a5 {[%clk 0:01:09.9]} 30. b6 {[%clk 0:00:39.9]}
30... Ke7 {[%clk 0:01:04.9]} 31. Rb2 {[%clk 0:00:36.9]} 31... Kd6 {[%clk
0:01:03.8]} 32. Rb5 {[%clk 0:00:30.6]} 32... Rc5 {[%clk 0:01:03.1]} 33. Rb2
{[%clk 0:00:28.6]} 33... Nd7 {[%clk 0:01:02.5]} 34. a4 {[%clk 0:00:23]} 34...
Ne5 {[%clk 0:00:40.7]} 35. Bb5 {[%clk 0:00:22.4]} 35... Rc3 {[%clk 0:00:40.4]}
36. Ba6 {[%clk 0:00:14.5]} 36... Kc6 {[%clk 0:00:33.9]} 37. f4 {[%clk
0:00:04.9]} 37... gxf4 {[%clk 0:00:33.2]} 38. gxf4 {[%clk 0:00:05.8]} 38... Ng6
{[%clk 0:00:33.9]} 39. Bb5+ {[%clk 0:00:05.9]} 39... Kxb6 {[%clk 0:00:32.8]} 40.
Bd3+ {[%clk 0:00:03.4]} 40... Kc6 {[%clk 0:00:32.9]} 41. Bf5 {[%clk 0:00:03.4]}
41... Nxf4+ {[%clk 0:00:32.6]} 0-1

[Event "Late-Titled-Tuesday-Blitz-November-28-2023"]
[Site "Chess.com"]
[Date "2023.11.28"]
[Round "4"]
[White "tolimachess"]
[Black "wannabe2700"]
[Result "0-1"]
[WhiteElo "2390"]
[BlackElo "2627"]
[TimeControl "180+1"]
[EndTime "14:37:09 PST"]
[Termination "wannabe2700 won by checkmate"]

1. e4 {[%clk 0:03:00.9]} 1... d5 {[%clk 0:03:00.1]} 2. exd5 {[%clk 0:02:59.6]}
2... Qxd5 {[%clk 0:03:01]} 3. Nc3 {[%clk 0:02:59.8]} 3... Qa5 {[%clk 0:03:01]}
4. Bc4 {[%clk 0:02:53.4]} 4... Nf6 {[%clk 0:03:00.1]} 5. Nf3 {[%clk 0:02:47.4]}
5... Bf5 {[%clk 0:02:59.3]} 6. O-O {[%clk 0:02:46.2]} 6... e6 {[%clk 0:02:57]}
7. d4 {[%clk 0:02:46.4]} 7... Bb4 {[%clk 0:02:51.3]} 8. Nb5 {[%clk 0:02:31.6]}
8... a6 {[%clk 0:02:43.3]} 9. c3 {[%clk 0:02:16.3]} 9... axb5 {[%clk 0:02:31.9]}
10. cxb4 {[%clk 0:02:16]} 10... Qxb4 {[%clk 0:02:32.8]} 11. Be2 {[%clk
0:02:16.5]} 11... c6 {[%clk 0:02:21.9]} 12. a3 {[%clk 0:02:11.3]} 12... Qd6
{[%clk 0:02:19.7]} 13. Bg5 {[%clk 0:02:09.4]} 13... Nbd7 {[%clk 0:02:12.7]} 14.
Qb3 {[%clk 0:02:06.6]} 14... O-O {[%clk 0:02:10.2]} 15. Rad1 {[%clk 0:02:04.5]}
15... Qd5 {[%clk 0:02:09]} 16. Qc3 {[%clk 0:02:03.6]} 16... Ne4 {[%clk
0:02:07.7]} 17. Qc1 {[%clk 0:02:03.3]} 17... Nxg5 {[%clk 0:02:07.2]} 18. Qxg5
{[%clk 0:02:03.3]} 18... Bc2 {[%clk 0:02:04.5]} 19. Qxd5 {[%clk 0:02:00.5]}
19... exd5 {[%clk 0:02:05.4]} 20. Rd2 {[%clk 0:02:00.2]} 20... Bb3 {[%clk
0:02:04.5]} 21. Bd3 {[%clk 0:01:57.1]} 21... Rfe8 {[%clk 0:01:57.6]} 22. Rc1
{[%clk 0:01:56.3]} 22... Nb6 {[%clk 0:01:50.9]} 23. Ne5 {[%clk 0:01:46.3]} 23...
f6 {[%clk 0:01:49.5]} 24. Nf3 {[%clk 0:01:45.5]} 24... Bc4 {[%clk 0:01:36.5]}
25. Bf5 {[%clk 0:01:40.1]} 25... g6 {[%clk 0:01:33.6]} 26. Bb1 {[%clk
0:01:36.9]} 26... b4 {[%clk 0:01:29.6]} 27. axb4 {[%clk 0:01:34.2]} 27... Ra4
{[%clk 0:01:28]} 28. Bc2 {[%clk 0:01:14.7]} 28... Rxb4 {[%clk 0:01:27.7]} 29. b3
{[%clk 0:01:15.1]} 29... Bxb3 {[%clk 0:01:02.6]} 30. Rb1 {[%clk 0:01:15]} 30...
Nc4 {[%clk 0:01:02.2]} 31. Bxb3 {[%clk 0:01:06.8]} 31... Nxd2 {[%clk 0:01:00.7]}
32. Nxd2 {[%clk 0:01:07.7]} 32... Rxd4 {[%clk 0:01:00]} 33. Nf3 {[%clk
0:01:04.4]} 33... Rd3 {[%clk 0:00:58.6]} 34. Bc2 {[%clk 0:01:02.7]} 34... Rc3
{[%clk 0:00:58.4]} 35. Rb2 {[%clk 0:00:55]} 35... b5 {[%clk 0:00:53.7]} 36. Kf1
{[%clk 0:00:54]} 36... c5 {[%clk 0:00:50.9]} 37. h4 {[%clk 0:00:40.4]} 37... b4
{[%clk 0:00:49.8]} 38. h5 {[%clk 0:00:40.3]} 38... Kg7 {[%clk 0:00:45.2]} 39.
hxg6 {[%clk 0:00:39.4]} 39... hxg6 {[%clk 0:00:46.1]} 40. Nh4 {[%clk 0:00:39.9]}
40... f5 {[%clk 0:00:45.6]} 41. Nf3 {[%clk 0:00:39.4]} 41... d4 {[%clk
0:00:38.8]} 42. Nd2 {[%clk 0:00:33]} 42... d3 {[%clk 0:00:36.6]} 43. Ra2 {[%clk
0:00:20.2]} 43... Rxc2 {[%clk 0:00:36]} 44. Ra7+ {[%clk 0:00:20.8]} 44... Kf6
{[%clk 0:00:35.4]} 45. g4 {[%clk 0:00:20.9]} 45... Rxd2 {[%clk 0:00:34.3]} 46.
g5+ {[%clk 0:00:21.8]} 46... Kxg5 {[%clk 0:00:33.4]} 47. Re7 {[%clk 0:00:22]}
47... Rxe7 {[%clk 0:00:32.2]} 48. f4+ {[%clk 0:00:22.9]} 48... Kxf4 {[%clk
0:00:30.8]} 49. Kg1 {[%clk 0:00:23.8]} 49... Re1# {[%clk 0:00:29.1]} 0-1

[Event "Late-Titled-Tuesday-Blitz-November-28-2023"]
[Site "Chess.com"]
[Date "2023.11.28"]
[Round "4"]
[White "Artem_Koval"]
[Black "Suspenser17"]
[Result "1-0"]
[WhiteElo "2514"]
[BlackElo "2335"]
[TimeControl "180+1"]
[EndTime "14:37:10 PST"]
[Termination "Artem_Koval won on time"]

1. e4 {[%clk 0:03:00.9]} 1... e5 {[%clk 0:02:59.3]} 2. d4 {[%clk 0:03:00.4]}
2... exd4 {[%clk 0:02:59.2]} 3. Bc4 {[%clk 0:03:00.8]} 3... Nc6 {[%clk
0:02:57.1]} 4. Nf3 {[%clk 0:03:01.1]} 4... Nf6 {[%clk 0:02:56.3]} 5. O-O {[%clk
0:03:01.6]} 5... Nxe4 {[%clk 0:02:55.8]} 6. Nc3 {[%clk 0:03:00.4]} 6... dxc3
{[%clk 0:02:52.5]} 7. Bxf7+ {[%clk 0:03:00.2]} 7... Kxf7 {[%clk 0:02:53.4]} 8.
Qd5+ {[%clk 0:03:00.3]} 8... Kf6 {[%clk 0:02:54.2]} 9. Qxe4 {[%clk 0:02:46.3]}
9... Be7 {[%clk 0:02:41.2]} 10. Qf4+ {[%clk 0:02:26.1]} 10... Kg6 {[%clk
0:02:26.7]} 11. h4 {[%clk 0:01:29.2]} 11... d6 {[%clk 0:02:08.3]} 12. h5+ {[%clk
0:01:20.4]} 12... Kxh5 {[%clk 0:02:06.9]} 13. Qf7+ {[%clk 0:01:20.7]} 13... g6
{[%clk 0:01:54]} 14. Nh2 {[%clk 0:01:21.2]} 14... Qf8 {[%clk 0:01:44]} 15. Qd5+
{[%clk 0:01:12.6]} 15... g5 {[%clk 0:01:33.7]} 16. Bxg5 {[%clk 0:00:59.4]} 16...
Kg6 {[%clk 0:01:00.3]} 17. Bxe7 {[%clk 0:00:52.5]} 17... Nxe7 {[%clk 0:00:55.1]}
18. Qd3+ {[%clk 0:00:51.6]} 18... Qf5 {[%clk 0:00:52]} 19. Qxc3 {[%clk
0:00:52.1]} 19... Be6 {[%clk 0:00:39.5]} 20. Nf3 {[%clk 0:00:51.9]} 20... Qf6
{[%clk 0:00:34.7]} 21. Qxc7 {[%clk 0:00:50.8]} 21... Bd5 {[%clk 0:00:28.5]} 22.
Rfe1 {[%clk 0:00:46.1]} 22... Nf5 {[%clk 0:00:22.3]} 23. Nh2 {[%clk 0:00:22.8]}
23... Qg5 {[%clk 0:00:17.2]} 24. f3 {[%clk 0:00:21.1]} 24... Rae8 {[%clk
0:00:13.1]} 25. Qa5 {[%clk 0:00:17.4]} 25... Nh4 {[%clk 0:00:11.6]} 26. Ng4
{[%clk 0:00:11.6]} 26... Bxf3 {[%clk 0:00:09.5]} 27. Qxg5+ {[%clk 0:00:12]}
27... Kxg5 {[%clk 0:00:09.8]} 28. Ne3 {[%clk 0:00:07.9]} 28... Be4 {[%clk
0:00:08.1]} 29. Rad1 {[%clk 0:00:06.6]} 29... d5 {[%clk 0:00:07.7]} 30. c4
{[%clk 0:00:06.9]} 30... dxc4 {[%clk 0:00:05.3]} 31. Rd4 {[%clk 0:00:07.6]}
31... Bc6 {[%clk 0:00:02.7]} 32. Rg4+ {[%clk 0:00:07.3]} 32... Kh5 {[%clk
0:00:02.6]} 33. Rxc4 {[%clk 0:00:07.9]} 33... Re7 {[%clk 0:00:01.5]} 34. Rc5+
{[%clk 0:00:08.4]} 1-0

[Event "Late-Titled-Tuesday-Blitz-November-28-2023"]
[Site "Chess.com"]
[Date "2023.11.28"]
[Round "4"]
[White "Aleksandar-Topalov"]
[Black "oskariot"]
[Result "1-0"]
[WhiteElo "2399"]
[BlackElo "2774"]
[TimeControl "180+1"]
[EndTime "14:37:13 PST"]
[Termination "Aleksandar-Topalov won by resignation"]

1. b3 {[%clk 0:03:00.9]} 1... Nf6 {[%clk 0:02:57.8]} 2. Bb2 {[%clk 0:03:00.8]}
2... g6 {[%clk 0:02:58.7]} 3. Bxf6 {[%clk 0:03:00.6]} 3... exf6 {[%clk
0:02:59.6]} 4. c4 {[%clk 0:03:00.6]} 4... d5 {[%clk 0:03:00.2]} 5. cxd5 {[%clk
0:03:00.6]} 5... Qxd5 {[%clk 0:03:01.1]} 6. e3 {[%clk 0:03:01]} 6... Bb4 {[%clk
0:02:51.7]} 7. a3 {[%clk 0:02:57.7]} 7... Qa5 {[%clk 0:02:51.3]} 8. Qc2 {[%clk
0:02:49.3]} 8... Bf5 {[%clk 0:02:36.4]} 9. Qb2 {[%clk 0:02:47]} 9... Be7 {[%clk
0:02:34.1]} 10. b4 {[%clk 0:02:44.2]} 10... Qb6 {[%clk 0:02:30.6]} 11. Nc3
{[%clk 0:02:43.2]} 11... a5 {[%clk 0:02:29.8]} 12. Nd5 {[%clk 0:02:39.3]} 12...
Qd6 {[%clk 0:02:30.2]} 13. Nxe7 {[%clk 0:02:37.3]} 13... Qxe7 {[%clk 0:02:31.1]}
14. b5 {[%clk 0:02:31.3]} 14... Nd7 {[%clk 0:02:29.6]} 15. d4 {[%clk 0:02:27.6]}
15... c5 {[%clk 0:02:18.4]} 16. bxc6 {[%clk 0:02:24.4]} 16... bxc6 {[%clk
0:02:19.3]} 17. Nf3 {[%clk 0:02:20.9]} 17... Rb8 {[%clk 0:02:19.4]} 18. Qc3
{[%clk 0:02:17.2]} 18... O-O {[%clk 0:02:06.9]} 19. Bc4 {[%clk 0:02:12]} 19...
c5 {[%clk 0:02:06.3]} 20. O-O {[%clk 0:02:11]} 20... Be4 {[%clk 0:02:06.6]} 21.
Be2 {[%clk 0:01:59.4]} 21... Rfc8 {[%clk 0:02:06.6]} 22. Qxa5 {[%clk 0:01:56.1]}
22... Rb2 {[%clk 0:02:05.1]} 23. Rfe1 {[%clk 0:01:49]} 23... c4 {[%clk
0:01:46.5]} 24. Rac1 {[%clk 0:01:45.9]} 24... Nb6 {[%clk 0:01:37.2]} 25. Nd2
{[%clk 0:01:27.9]} 25... Ra8 {[%clk 0:01:01.5]} 26. Qc5 {[%clk 0:01:21.3]} 26...
Qxc5 {[%clk 0:01:00.9]} 27. dxc5 {[%clk 0:01:21.5]} 27... Rxd2 {[%clk
0:01:01.8]} 28. cxb6 {[%clk 0:01:21]} 28... Bd3 {[%clk 0:01:02.7]} 29. Bxd3
{[%clk 0:01:10.8]} 29... cxd3 {[%clk 0:01:03.6]} 30. Red1 {[%clk 0:01:10.5]}
30... Rb2 {[%clk 0:01:03.4]} 31. Rb1 {[%clk 0:01:08.8]} 31... Ra2 {[%clk
0:00:53.7]} 32. Rxd3 {[%clk 0:01:00.5]} 32... Kf8 {[%clk 0:00:54.1]} 33. b7
{[%clk 0:00:59.8]} 33... Rb8 {[%clk 0:00:54.3]} 34. h3 {[%clk 0:00:54.1]} 34...
Ke7 {[%clk 0:00:53.2]} 35. Rb6 {[%clk 0:00:46.8]} 35... Rc2 {[%clk 0:00:47.5]}
36. g4 {[%clk 0:00:44.2]} 36... Rc7 {[%clk 0:00:43.2]} 37. Rdb3 {[%clk
0:00:43.8]} 37... Rc5 {[%clk 0:00:43.5]} 38. a4 {[%clk 0:00:41.1]} 38... Kd7
{[%clk 0:00:44]} 39. Rxf6 {[%clk 0:00:35.7]} 39... Ke7 {[%clk 0:00:39.6]} 40.
Rfb6 {[%clk 0:00:35.3]} 40... Ra5 {[%clk 0:00:40.5]} 41. R3b4 {[%clk 0:00:34.7]}
41... Kd7 {[%clk 0:00:41]} 42. Kg2 {[%clk 0:00:33.9]} 42... h5 {[%clk
0:00:40.1]} 43. f4 {[%clk 0:00:31.8]} 43... hxg4 {[%clk 0:00:41]} 44. hxg4
{[%clk 0:00:31.8]} 44... Kc7 {[%clk 0:00:40.8]} 45. Kf3 {[%clk 0:00:31.5]} 45...
Rxa4 {[%clk 0:00:37.5]} 46. Rxa4 {[%clk 0:00:29.2]} 46... Kxb6 {[%clk
0:00:38.4]} 47. Rb4+ {[%clk 0:00:29.5]} 47... Kc5 {[%clk 0:00:39]} 48. Rb1
{[%clk 0:00:29.1]} 48... f5 {[%clk 0:00:39.9]} 49. gxf5 {[%clk 0:00:27.9]} 49...
gxf5 {[%clk 0:00:40.8]} 50. e4 {[%clk 0:00:27.2]} 50... fxe4+ {[%clk 0:00:36.9]}
51. Kxe4 {[%clk 0:00:27.4]} 51... Kc6 {[%clk 0:00:37.8]} 52. f5 {[%clk
0:00:27.2]} 52... Kc7 {[%clk 0:00:38.1]} 53. f6 {[%clk 0:00:26]} 53... Re8+
{[%clk 0:00:32.3]} 54. Kf5 {[%clk 0:00:26]} 54... Kb8 {[%clk 0:00:33.2]} 55. f7
{[%clk 0:00:25]} 1-0

[Event "Late-Titled-Tuesday-Blitz-November-28-2023"]
[Site "Chess.com"]
[Date "2023.11.28"]
[Round "4"]
[White "Mariia89"]
[Black "giomar27"]
[Result "0-1"]
[WhiteElo "2162"]
[BlackElo "2428"]
[TimeControl "180+1"]
[EndTime "14:37:14 PST"]
[Termination "giomar27 won by checkmate"]

1. d4 {[%clk 0:02:58.5]} 1... Nf6 {[%clk 0:02:59.4]} 2. Nf3 {[%clk 0:02:58.8]}
2... c5 {[%clk 0:02:59.3]} 3. d5 {[%clk 0:02:58.9]} 3... b5 {[%clk 0:02:59.7]}
4. c4 {[%clk 0:02:57.2]} 4... g6 {[%clk 0:02:59.8]} 5. cxb5 {[%clk 0:02:53.5]}
5... a6 {[%clk 0:03:00.1]} 6. bxa6 {[%clk 0:02:52.9]} 6... Bg7 {[%clk 0:03:00]}
7. Nc3 {[%clk 0:02:52.5]} 7... O-O {[%clk 0:03:00.3]} 8. e4 {[%clk 0:02:52.7]}
8... Qa5 {[%clk 0:03:00.4]} 9. Bd3 {[%clk 0:02:50.9]} 9... Nxd5 {[%clk
0:02:57.5]} 10. exd5 {[%clk 0:02:48.4]} 10... Bxc3+ {[%clk 0:02:57.7]} 11. bxc3
{[%clk 0:02:47.1]} 11... Qxc3+ {[%clk 0:02:58.6]} 12. Qd2 {[%clk 0:02:34.6]}
12... Qxa1 {[%clk 0:02:58.2]} 13. O-O {[%clk 0:02:34.5]} 13... Bxa6 {[%clk
0:02:28.7]} 14. Bb2 {[%clk 0:02:34.2]} 14... Qxa2 {[%clk 0:02:29]} 15. Ra1
{[%clk 0:02:27]} 15... Qxd5 {[%clk 0:02:29]} 16. Qh6 {[%clk 0:02:22.6]} 16... f6
{[%clk 0:01:37.2]} 17. Ng5 {[%clk 0:02:22.2]} 17... Rf7 {[%clk 0:01:31.4]} 18.
Be4 {[%clk 0:02:17.5]} 18... Qxg5 {[%clk 0:01:14.4]} 19. Qxg5 {[%clk 0:02:15.4]}
19... fxg5 {[%clk 0:01:15.3]} 20. Bxa8 {[%clk 0:02:15.4]} 20... Rf4 {[%clk
0:00:50.3]} 21. Be5 {[%clk 0:02:12.3]} 21... Rb4 {[%clk 0:00:49.6]} 22. h4
{[%clk 0:01:55.4]} 22... d6 {[%clk 0:00:44.2]} 23. Bg3 {[%clk 0:01:48.7]} 23...
gxh4 {[%clk 0:00:41.5]} 24. Bd5+ {[%clk 0:01:45]} 24... Kf8 {[%clk 0:00:39.7]}
25. Bh2 {[%clk 0:01:42.3]} 25... Bb7 {[%clk 0:00:38.5]} 26. Be6 {[%clk
0:01:40.4]} 26... Be4 {[%clk 0:00:38.5]} 27. Bf4 {[%clk 0:01:37.5]} 27... Rb1+
{[%clk 0:00:38.4]} 28. Rxb1 {[%clk 0:01:36]} 28... Bxb1 {[%clk 0:00:39.3]} 29.
Bh6+ {[%clk 0:01:36]} 29... Ke8 {[%clk 0:00:38.9]} 30. Bg5 {[%clk 0:01:34.5]}
30... Bf5 {[%clk 0:00:37.2]} 31. Bc4 {[%clk 0:01:32.9]} 31... Nd7 {[%clk
0:00:32.9]} 32. Bxh4 {[%clk 0:01:32.6]} 32... Nb6 {[%clk 0:00:31.5]} 33. Bb5+
{[%clk 0:01:31.5]} 33... Bd7 {[%clk 0:00:31.6]} 34. Be2 {[%clk 0:01:31.5]} 34...
d5 {[%clk 0:00:30.4]} 35. Bg5 {[%clk 0:01:27.9]} 35... e5 {[%clk 0:00:26.9]} 36.
f4 {[%clk 0:01:21.8]} 36... e4 {[%clk 0:00:25.3]} 37. Bf6 {[%clk 0:01:17.7]}
37... d4 {[%clk 0:00:22.1]} 38. g4 {[%clk 0:01:11.3]} 38... Kf7 {[%clk
0:00:19.8]} 39. Be5 {[%clk 0:01:07.7]} 39... Ke6 {[%clk 0:00:19.2]} 40. Bc7
{[%clk 0:01:07.4]} 40... Nd5 {[%clk 0:00:15.1]} 41. Bb8 {[%clk 0:01:06.1]} 41...
d3 {[%clk 0:00:14.2]} 42. Bf1 {[%clk 0:01:06.2]} 42... c4 {[%clk 0:00:13.6]} 43.
f5+ {[%clk 0:01:05.6]} 43... gxf5 {[%clk 0:00:11.5]} 44. gxf5+ {[%clk
0:01:05.8]} 44... Kf7 {[%clk 0:00:11.6]} 45. Kf2 {[%clk 0:00:46.8]} 45... Bxf5
{[%clk 0:00:10.8]} 46. Ke1 {[%clk 0:00:45.2]} 46... c3 {[%clk 0:00:09.6]} 47.
Be5 {[%clk 0:00:42.8]} 47... d2+ {[%clk 0:00:09.7]} 48. Kd1 {[%clk 0:00:42.5]}
48... Bg4+ {[%clk 0:00:10.4]} 49. Kc2 {[%clk 0:00:41.3]} 49... d1=Q# {[%clk
0:00:11.3]} 0-1

[Event "Late-Titled-Tuesday-Blitz-November-28-2023"]
[Site "Chess.com"]
[Date "2023.11.28"]
[Round "4"]
[White "FuenfgegenWilly"]
[Black "subham777"]
[Result "1-0"]
[WhiteElo "2496"]
[BlackElo "2644"]
[TimeControl "180+1"]
[EndTime "14:37:19 PST"]
[Termination "FuenfgegenWilly won by checkmate"]

1. e4 {[%clk 0:03:00.9]} 1... e6 {[%clk 0:02:59.7]} 2. d4 {[%clk 0:03:00.4]}
2... d5 {[%clk 0:03:00.1]} 3. exd5 {[%clk 0:03:01]} 3... exd5 {[%clk 0:02:59.8]}
4. Nf3 {[%clk 0:03:01.3]} 4... Nf6 {[%clk 0:03:00.3]} 5. Bd3 {[%clk 0:03:01.1]}
5... Bd6 {[%clk 0:03:00.5]} 6. Qe2+ {[%clk 0:03:01.7]} 6... Be7 {[%clk
0:03:00.2]} 7. Bf4 {[%clk 0:02:56.4]} 7... O-O {[%clk 0:02:59.8]} 8. O-O {[%clk
0:02:56.4]} 8... Bg4 {[%clk 0:02:57.9]} 9. h3 {[%clk 0:02:56.3]} 9... Bh5 {[%clk
0:02:58.3]} 10. Nbd2 {[%clk 0:02:52.9]} 10... c5 {[%clk 0:02:55.2]} 11. g4
{[%clk 0:02:21.4]} 11... Bg6 {[%clk 0:02:42.2]} 12. dxc5 {[%clk 0:02:17.4]}
12... Bxc5 {[%clk 0:02:37.9]} 13. Nb3 {[%clk 0:02:13.6]} 13... Bb6 {[%clk
0:02:31.8]} 14. Ne5 {[%clk 0:02:10.1]} 14... Re8 {[%clk 0:02:24.2]} 15. Bxg6
{[%clk 0:02:08]} 15... hxg6 {[%clk 0:02:21.7]} 16. Qd3 {[%clk 0:02:04.6]} 16...
Nc6 {[%clk 0:02:19.6]} 17. Rae1 {[%clk 0:01:56.7]} 17... Nxe5 {[%clk 0:02:10.5]}
18. Rxe5 {[%clk 0:01:53]} 18... Rxe5 {[%clk 0:02:04.9]} 19. Bxe5 {[%clk
0:01:53.9]} 19... Ne4 {[%clk 0:02:05.2]} 20. Kg2 {[%clk 0:01:49.2]} 20... Qd7
{[%clk 0:01:38.6]} 21. f3 {[%clk 0:01:43.5]} 21... Nf6 {[%clk 0:01:31.5]} 22.
Rd1 {[%clk 0:01:35.3]} 22... Re8 {[%clk 0:01:22.4]} 23. Bd4 {[%clk 0:01:03.8]}
23... Qe6 {[%clk 0:01:05.5]} 24. Bxb6 {[%clk 0:00:57.5]} 24... Qxb6 {[%clk
0:01:03.8]} 25. Rd2 {[%clk 0:00:52]} 25... Re1 {[%clk 0:00:57.7]} 26. Qd4 {[%clk
0:00:50.6]} 26... Qe6 {[%clk 0:00:49.9]} 27. Nc5 {[%clk 0:00:46.1]} 27... Re2+
{[%clk 0:00:36.7]} 28. Rxe2 {[%clk 0:00:45.8]} 28... Qxe2+ {[%clk 0:00:36.2]}
29. Qf2 {[%clk 0:00:46.7]} 29... Qb5 {[%clk 0:00:31.1]} 30. Nd3 {[%clk
0:00:41.1]} 30... b6 {[%clk 0:00:21.8]} 31. Qd4 {[%clk 0:00:39.4]} 31... Qc6
{[%clk 0:00:20.5]} 32. c3 {[%clk 0:00:34.8]} 32... Qe6 {[%clk 0:00:20.4]} 33.
Qe5 {[%clk 0:00:32.4]} 33... Qd7 {[%clk 0:00:18.7]} 34. Nb4 {[%clk 0:00:25.9]}
34... a5 {[%clk 0:00:15.4]} 35. Nd3 {[%clk 0:00:20.6]} 35... Qb5 {[%clk
0:00:14.8]} 36. Qd4 {[%clk 0:00:17.3]} 36... Nd7 {[%clk 0:00:11.7]} 37. Nf4
{[%clk 0:00:16.1]} 37... Qxb2+ {[%clk 0:00:10.1]} 38. Kg3 {[%clk 0:00:16.3]}
38... Qxa2 {[%clk 0:00:08.9]} 39. Nxd5 {[%clk 0:00:16.7]} 39... Nc5 {[%clk
0:00:06.9]} 40. Ne7+ {[%clk 0:00:15.5]} 40... Kh7 {[%clk 0:00:04.9]} 41. Qd8
{[%clk 0:00:14.9]} 41... g5 {[%clk 0:00:01.4]} 42. Qg8+ {[%clk 0:00:13.9]} 42...
Kh6 {[%clk 0:00:01.8]} 43. Qh8# {[%clk 0:00:14.8]} 1-0

[Event "Late-Titled-Tuesday-Blitz-November-28-2023"]
[Site "Chess.com"]
[Date "2023.11.28"]
[Round "4"]
[White "drdaro"]
[Black "ahkashefi2800"]
[Result "0-1"]
[WhiteElo "2252"]
[BlackElo "2580"]
[TimeControl "180+1"]
[EndTime "14:37:20 PST"]
[Termination "ahkashefi2800 won by checkmate"]

1. d4 {[%clk 0:02:57.7]} 1... d5 {[%clk 0:03:00.1]} 2. Nf3 {[%clk 0:02:55]} 2...
Nf6 {[%clk 0:03:00.4]} 3. g3 {[%clk 0:02:54.6]} 3... c6 {[%clk 0:03:00.9]} 4.
Bg2 {[%clk 0:02:54.8]} 4... Bf5 {[%clk 0:03:01.2]} 5. O-O {[%clk 0:02:55.7]}
5... e6 {[%clk 0:03:01.4]} 6. Nbd2 {[%clk 0:02:56.4]} 6... Nbd7 {[%clk
0:03:01.6]} 7. b3 {[%clk 0:02:56.9]} 7... Bb4 {[%clk 0:03:01.4]} 8. Bb2 {[%clk
0:02:56.9]} 8... O-O {[%clk 0:03:01.5]} 9. a3 {[%clk 0:02:57.2]} 9... Bd6 {[%clk
0:03:01.8]} 10. Nh4 {[%clk 0:02:56.4]} 10... Bg4 {[%clk 0:03:01.3]} 11. c4
{[%clk 0:02:50.8]} 11... Re8 {[%clk 0:02:58.7]} 12. Qc2 {[%clk 0:02:49.2]} 12...
Nf8 {[%clk 0:02:57.1]} 13. Rfe1 {[%clk 0:02:47.5]} 13... Bh5 {[%clk 0:02:53.9]}
14. e4 {[%clk 0:02:43.7]} 14... dxe4 {[%clk 0:02:53.5]} 15. Nxe4 {[%clk
0:02:43.3]} 15... Nxe4 {[%clk 0:02:53.3]} 16. Bxe4 {[%clk 0:02:43.9]} 16... Be7
{[%clk 0:02:52.3]} 17. Nf3 {[%clk 0:02:37.7]} 17... f5 {[%clk 0:02:43.5]} 18. g4
{[%clk 0:02:27.8]} 18... Bxg4 {[%clk 0:02:42.9]} 19. Ne5 {[%clk 0:02:27.5]}
19... Bh5 {[%clk 0:02:35.3]} 20. Bg2 {[%clk 0:02:20.2]} 20... Bd6 {[%clk
0:02:35.3]} 21. d5 {[%clk 0:02:15.3]} 21... cxd5 {[%clk 0:02:19.4]} 22. cxd5
{[%clk 0:02:15.1]} 22... Rc8 {[%clk 0:02:19.2]} 23. Qd3 {[%clk 0:02:10.8]} 23...
Bxe5 {[%clk 0:02:09.8]} 24. Rxe5 {[%clk 0:02:01.7]} 24... Ng6 {[%clk 0:02:07.3]}
25. Ree1 {[%clk 0:01:47.1]} 25... Nf4 {[%clk 0:02:06.4]} 26. Qg3 {[%clk
0:01:47]} 26... Ng6 {[%clk 0:01:47]} 27. dxe6 {[%clk 0:01:47.5]} 27... f4 {[%clk
0:01:44.8]} 28. Qh3 {[%clk 0:01:40.2]} 28... Qg5 {[%clk 0:01:43.2]} 29. Kh1
{[%clk 0:01:23.7]} 29... Rc2 {[%clk 0:01:37.4]} 30. Bd4 {[%clk 0:01:14.1]} 30...
f3 {[%clk 0:01:03.5]} 31. Bf1 {[%clk 0:00:31.9]} 31... Qg4 {[%clk 0:00:58.9]}
32. Qxg4 {[%clk 0:00:23.2]} 32... Bxg4 {[%clk 0:00:59.8]} 33. Bc4 {[%clk
0:00:19.7]} 33... Bh3 {[%clk 0:00:55.1]} 34. Re4 {[%clk 0:00:12.2]} 34... Kh8
{[%clk 0:00:21.6]} 35. Rd1 {[%clk 0:00:11.5]} 35... h6 {[%clk 0:00:19.2]} 36.
Bb5 {[%clk 0:00:10.7]} 36... Rxe6 {[%clk 0:00:16.7]} 37. Rxe6 {[%clk 0:00:10]}
37... Bxe6 {[%clk 0:00:17.6]} 38. Bd3 {[%clk 0:00:04.7]} 38... Nf4 {[%clk
0:00:16.3]} 39. Bxc2 {[%clk 0:00:05.1]} 39... Bh3 {[%clk 0:00:16.5]} 40. Bf5
{[%clk 0:00:02.5]} 40... Bg2+ {[%clk 0:00:16.2]} 41. Kg1 {[%clk 0:00:02.7]}
41... Ne2# {[%clk 0:00:17.1]} 0-1